bitfinex/quotes_BTCUSD_20240617
["timestamp","ask_amount","ask_price","bid_price","bid_amount"]
[1718649310289,0.000162,67299.0,67298.0,1.0263452]
[1718649310493,0.000162,67299.0,67298.0,1.3335302]
[1718649310698,0.000162,67299.0,67298.0,1.6207152]
[1718649310900,0.000162,67299.0,67298.0,1.1667302]
[1718649311095,0.000162,67299.0,67298.0,0.8695452]
[1718649311298,0.000162,67299.0,67298.0,0.1643682]
[1718649311501,0.000162,67299.0,67298.0,0.6241452]
[1718649311699,0.000162,67299.0,67298.0,1.1807302]
[1718649311944,0.000162,67299.0,67298.0,1.4739152]
[1718649312146,0.000162,67299.0,67298.0,1.7996152]
[1718649312357,0.000162,67299.0,67298.0,2.0104152]
[1718649312543,0.000162,67299.0,67298.0,1.6632302]
[1718649312700,0.000162,67299.0,67298.0,1.9604152]
[1718649312900,0.000162,67299.0,67298.0,0.7494682]
[1718649313102,0.000162,67299.0,67298.0,1.4924302]
[1718649313473,0.000162,67299.0,67298.0,1.8036152]
[1718649313679,0.000162,67299.0,67298.0,1.8136152]
[1718649313893,0.000162,67299.0,67298.0,1.9604152]
[1718649314097,0.000162,67299.0,67298.0,2.0204152]
[1718649314267,0.000162,67299.0,67298.0,2.0344152]
[1718649314445,0.000162,67299.0,67298.0,2.0104152]
[1718649314849,0.000162,67299.0,67298.0,2.0244152]
[1718649315050,0.000162,67299.0,67298.0,0.7774682]
[1718649315315,0.000162,67299.0,67298.0,0.18072888]
[1718649315479,0.000162,67299.0,67298.0,0.028]
[1718649315722,0.297343,67299.0,67298.0,0.028]
[1718649315928,0.000162,67299.0,67298.0,0.028]
[1718649316368,0.000162,67299.0,67298.0,0.014]
[1718649316748,0.445933,67299.0,67298.0,0.014]
[1718649316967,0.305721,67302.0,67300.0,0.04639464]
[1718649316968,0.00755,67302.0,67300.0,0.04639464]
[1718649317514,0.00755,67302.0,67301.0,0.5543265]
[1718649317814,0.00755,67302.0,67301.0,1.00422738]
[1718649318414,0.00755,67302.0,67301.0,0.26129738]
[1718649318663,0.00755,67302.0,67301.0,0.24965806]
[1718649319130,0.00755,67302.0,67301.0,0.2286596]
[1718649319534,0.00755,67302.0,67301.0,0.2296596]
[1718649319535,0.01355,67302.0,67301.0,0.2296596]
[1718649319740,0.01355,67302.0,67301.0,0.3782456]
[1718649320051,0.02255,67302.0,67301.0,0.3782456]
[1718649320253,0.02255,67302.0,67301.0,0.68705692]
[1718649320462,0.01355,67302.0,67301.0,0.68705692]
[1718649320704,0.02255,67302.0,67301.0,0.68805692]
[1718649320905,0.02255,67302.0,67301.0,0.98522892]
[1718649321116,0.02255,67302.0,67301.0,0.68805692]
[1718649321650,0.02255,67302.0,67301.0,0.98522892]
[1718649322924,0.02255,67302.0,67301.0,1.29240092]
[1718649323312,0.02255,67302.0,67301.0,2.05320092]
[1718649323506,0.02255,67302.0,67301.0,2.06320092]
[1718649324158,0.02255,67302.0,67301.0,2.04820092]
[1718649324612,0.00755,67302.0,67301.0,1.99620092]
[1718649325047,0.00855,67302.0,67301.0,2.02420092]
[1718649325369,0.00855,67302.0,67301.0,2.32137292]
[1718649325607,0.00855,67302.0,67301.0,2.36737292]
[1718649326081,0.00855,67302.0,67301.0,2.35737292]
[1718649326437,0.00855,67302.0,67301.0,2.37137292]
[1718649326659,0.00855,67302.0,67301.0,2.38137292]
[1718649327015,0.00855,67302.0,67301.0,2.37137292]
[1718649328595,0.00855,67302.0,67301.0,0.74472888]
[1718649328796,0.00855,67302.0,67301.0,0.1923682]
[1718649329047,0.00855,67302.0,67301.0,0.95992948]
[1718649329431,0.00855,67302.0,67301.0,0.36558548]
[1718649329634,0.00855,67302.0,67301.0,0.1923682]
[1718649329857,0.00855,67302.0,67301.0,0.19072888]
[1718649330101,0.00855,67302.0,67301.0,0.32931488]
[1718649330302,0.00855,67302.0,67301.0,0.62648688]
[1718649330491,0.00855,67302.0,67301.0,0.9352982]
[1718649330830,0.00855,67302.0,67301.0,0.9362332]
[1718649331230,0.00855,67302.0,67301.0,0.028935]
[1718649331477,0.00855,67302.0,67301.0,0.474693]
[1718649331680,0.00855,67302.0,67301.0,0.18390823]
[1718649331884,0.00855,67302.0,67301.0,0.78989155]
[1718649332291,0.00855,67302.0,67301.0,0.03532223]
[1718649332491,0.00855,67302.0,67301.0,0.25983895]
[1718649332724,0.00855,67302.0,67301.0,0.11125295]
[1718649333056,0.00855,67302.0,67301.0,0.03532223]
[1718649333226,0.58705,67302.0,67301.0,0.03532223]
[1718649333390,0.58705,67302.0,67301.0,0.028935]
[1718649333992,0.58705,67302.0,67301.0,0.03497879]
[1718649334220,0.58705,67302.0,67281.0,0.01163932]
[1718649334221,0.2138,67301.0,67281.0,0.01163932]
[1718649334393,0.2138,67301.0,67266.0,0.05]
[1718649334394,0.2138,67301.0,67263.0,0.01163932]
[1718649334395,0.148647,67274.0,67263.0,0.01163932]
[1718649334615,0.2534,67285.0,67271.0,0.45558432]
[1718649334816,0.2534,67285.0,67264.0,0.2286596]
[1718649334817,0.29727,67279.0,67264.0,0.2286596]
[1718649335019,0.2534,67285.0,67276.0,0.01163932]
[1718649335203,0.2534,67285.0,67278.0,0.07593072]
[1718649335410,0.2534,67285.0,67279.0,0.15272888]
[1718649335613,0.2534,67285.0,67279.0,0.1643682]
[1718649335810,0.2534,67285.0,67279.0,0.15272888]
[1718649336658,0.2534,67285.0,67278.0,0.07593072]
[1718649337100,0.2534,67285.0,67278.0,0.08757004]
[1718649337308,0.2534,67285.0,67278.0,0.07593072]
[1718649337499,0.148625,67284.0,67278.0,0.07593072]
[1718649337654,0.148625,67284.0,67266.0,0.65414]
[1718649337655,0.148635,67279.0,67266.0,0.07112832]
[1718649337854,0.2534,67285.0,67271.0,0.07593072]
[1718649338050,0.2534,67285.0,67279.0,0.006]
[1718649338051,0.297251,67284.0,67279.0,0.006]
[1718649338265,0.148632,67280.0,67279.0,0.001]
[1718649338459,0.445897,67280.0,67279.0,0.001]
[1718649338662,0.148631,67281.0,67278.0,0.001]
[1718649338862,0.3624,67285.0,67278.0,0.001]
[1718649339130,0.2973,67272.0,67271.0,0.001]
[1718649339246,1.01215,67272.0,67271.0,0.001]
[1718649339569,0.148666,67265.0,67252.0,0.01163932]
[1718649339826,0.5662,67272.0,67258.0,0.01163932]
[1718649339827,0.148659,67268.0,67258.0,0.01163932]
[1718649339967,0.5662,67272.0,67263.0,0.07593072]
[1718649340334,0.5662,67272.0,67264.0,0.00590325]
[1718649340462,0.29731,67270.0,67264.0,0.00590325]
[1718649340667,0.5662,67272.0,67263.0,0.07593072]
[1718649340917,0.0863486,67271.0,67264.0,0.00590325]
[1718649341110,0.5662,67272.0,67264.0,0.00590325]
[1718649341491,0.148656,67269.0,67264.0,0.00590325]
[1718649341709,0.001,67265.0,67256.0,0.07693072]
[1718649341911,0.297344,67262.0,67256.0,0.07693072]
[1718649342116,0.297344,67262.0,67257.0,0.00590325]
[1718649342117,0.148681,67258.0,67257.0,0.00590325]
[1718649342319,0.297354,67260.0,67250.0,0.01163932]
[1718649342522,0.3158,67259.0,67257.0,0.00590325]
[1718649342741,0.3158,67259.0,67249.0,0.07593072]
[1718649342957,0.14869,67254.0,67249.0,0.07593072]
[1718649343161,0.14869,67254.0,67250.0,0.00590325]
[1718649343370,0.14869,67254.0,67249.0,0.07593072]
[1718649343371,0.297375,67255.0,67249.0,0.07593072]
[1718649343577,0.297383,67254.0,67249.0,0.07593072]
[1718649343780,0.2589,67254.0,67240.0,0.07593072]
[1718649343992,0.2589,67254.0,67241.0,0.15272888]
[1718649344274,0.297399,67250.0,67241.0,0.00604574]
[1718649344477,0.297403,67249.0,67241.0,0.00604574]
[1718649344699,0.0556303,67249.0,67241.0,0.01163932]
[1718649344913,0.0556303,67249.0,67240.0,0.07593072]
[1718649345141,0.14871,67245.0,67242.0,0.006053]
[1718649345498,0.148702,67249.0,67240.0,0.07593072]
[1718649345722,0.001,67250.0,67241.0,0.001]
[1718649345866,0.001,67249.0,67241.0,0.001]
[1718649346137,0.297403,67249.0,67240.0,0.07593072]
[1718649346303,0.2589,67254.0,67240.0,0.07593072]
[1718649346653,0.001,67245.0,67242.0,0.01263932]
[1718649346979,0.001,67245.0,67243.0,0.00606674]
[1718649347179,0.001,67245.0,67244.0,0.01163932]
[1718649347380,0.001,67245.0,67242.0,0.001]
[1718649347580,0.002,67245.0,67242.0,0.001]
[1718649347855,0.002,67245.0,67243.0,0.01770606]
[1718649347969,0.001,67245.0,67243.0,0.00606674]
[1718649348392,0.002,67245.0,67243.0,0.00606674]
[1718649348594,0.148695,67252.0,67243.0,0.00606674]
[1718649348855,0.001,67249.0,67243.0,0.00606674]
[1718649349060,0.001,67245.0,67240.0,0.07693072]
[1718649349399,0.148698,67251.0,67241.0,0.00606731]
[1718649349600,0.1487,67250.0,67241.0,0.00606731]
[1718649349857,0.001,67245.0,67243.0,0.001]
[1718649350082,0.0298404,67244.0,67243.0,0.001]
[1718649350359,0.001,67245.0,67243.0,0.001]
[1718649350907,0.002,67245.0,67243.0,0.001]
[1718649351160,0.001,67245.0,67244.0,0.00606731]
[1718649351358,0.001,67245.0,67239.0,0.01163932]
[1718649351593,0.001,67245.0,67241.0,0.001]
[1718649352151,0.001,67245.0,67242.0,0.00606967]
[1718649352345,0.149696,67251.0,67242.0,0.00606967]
[1718649352550,0.001,67245.0,67242.0,0.00606967]
[1718649352931,0.002,67245.0,67244.0,0.001]
[1718649353391,0.002,67245.0,67244.0,0.00706901]
[1718649353625,0.002,67245.0,67244.0,0.001]
[1718649353750,0.002,67245.0,67244.0,0.00706901]
[1718649353966,0.002,67245.0,67244.0,0.001]
[1718649354143,0.001,67245.0,67244.0,0.00706901]
[1718649354344,0.001,67245.0,67244.0,0.001]
[1718649354558,0.001,67245.0,67244.0,0.00606901]
[1718649354760,0.002,67245.0,67242.0,0.001]
[1718649354961,0.002,67245.0,67244.0,0.00606901]
[1718649355190,0.002,67245.0,67242.0,0.001]
[1718649355460,0.297395,67251.0,67240.0,0.07593072]
[1718649355661,0.148719,67241.0,67233.0,0.08531372]
[1718649355897,0.297432,67243.0,67234.0,0.00606901]
[1718649355898,0.446147,67243.0,67234.0,0.00606901]
[1718649356092,0.446147,67243.0,67234.0,0.01770833]
[1718649356299,0.148719,67241.0,67234.0,0.01770833]
[1718649356532,0.001,67245.0,67234.0,0.00606901]
[1718649356742,0.148732,67235.0,67234.0,0.00606901]
[1718649356970,0.74366,67235.0,67234.0,0.00606901]
[1718649357170,0.74366,67235.0,67233.0,0.009383]
[1718649357171,0.446202,67234.0,67233.0,0.009383]
[1718649357349,0.89639888,67234.0,67233.0,0.009383]
[1718649357759,0.446215,67232.0,67215.0,0.07593072]
[1718649357949,0.148765,67220.0,67215.0,0.07593072]
[1718649358153,0.14876,67223.0,67215.0,0.07593072]
[1718649358372,0.46182888,67232.0,67215.0,0.07593072]
[1718649358373,0.148754,67225.0,67216.0,0.00613986]
[1718649358580,0.46182888,67232.0,67215.0,0.07593072]
[1718649358798,0.1,67229.0,67217.0,0.00613986]
[1718649359014,0.2566,67230.0,67218.0,0.07593072]
[1718649359015,0.15271256,67228.0,67218.0,0.07593072]
[1718649359180,0.2975,67227.0,67218.0,0.07593072]
[1718649359391,0.446251,67227.0,67218.0,0.07593072]
[1718649359606,0.014,67223.0,67218.0,0.07593072]
[1718649360381,0.014,67223.0,67222.0,0.45792032]
[1718649360609,0.014,67223.0,67222.0,0.01163932]
[1718649360812,0.014,67223.0,67222.0,0.00616653]
[1718649361013,0.013,67225.0,67222.0,0.00616653]
[1718649361014,0.297482,67231.0,67222.0,0.00616653]
[1718649361220,0.297492,67229.0,67215.0,0.01163932]
[1718649361436,0.148749,67227.0,67223.0,0.00616653]
[1718649361658,0.148749,67227.0,67215.0,0.01163932]
[1718649361866,0.162749,67227.0,67216.0,0.00616653]
[1718649362076,0.162749,67227.0,67222.0,0.001]
[1718649362077,0.014,67227.0,67222.0,0.001]
[1718649362287,0.3091,67232.0,67222.0,0.001]
[1718649362487,0.28139573,67236.0,67228.0,0.07593072]
[1718649362691,0.275426,67235.0,67228.0,0.07593072]
[1718649362891,0.28139573,67236.0,67229.0,0.07593072]
[1718649363102,0.2552,67236.0,67229.0,0.07593072]
[1718649363304,0.2552,67236.0,67229.0,0.22467372]
[1718649363526,0.2552,67236.0,67230.0,0.00618431]
[1718649364186,0.02678427,67236.0,67230.0,0.01782363]
[1718649364386,0.2628,67241.0,67233.0,0.30911132]
[1718649364774,0.148721,67240.0,67229.0,0.07593072]
[1718649364995,0.148721,67240.0,67234.0,0.00618431]
[1718649365216,0.148723,67239.0,67229.0,0.07593072]
[1718649365429,0.148752,67226.0,67221.0,0.08757004]
[1718649365631,0.15272888,67238.0,67230.0,0.00618431]
[1718649365632,0.14874,67231.0,67230.0,0.00618431]
[1718649365755,0.148747,67229.0,67221.0,0.07593072]
[1718649366025,0.412355,67231.0,67207.0,0.37351672]
[1718649366026,0.297517,67223.0,67211.0,0.01163932]
[1718649366242,0.297517,67223.0,67210.0,0.009383]
[1718649366243,0.446301,67219.0,67210.0,0.009383]
[1718649366666,0.546301,67219.0,67210.0,0.009383]
[1718649366884,0.843835,67219.0,67210.0,0.009383]
[1718649367091,0.96349139,67219.0,67210.0,0.009383]
[1718649367210,1.11622027,67219.0,67210.0,0.009383]
[1718649367611,0.81868627,67219.0,67210.0,0.009383]
[1718649367818,0.1,67219.0,67211.0,0.30920832]
[1718649368026,0.297477,67232.0,67210.0,0.009383]
[1718649368027,0.1,67228.0,67218.0,0.149715]
[1718649368222,0.1,67229.0,67220.0,0.07593072]
[1718649368449,0.1,67229.0,67228.0,0.07593072]
[1718649368647,0.1,67229.0,67228.0,0.08212578]
[1718649368847,0.02683548,67230.0,67228.0,0.08212578]
[1718649369115,0.148744,67230.0,67228.0,0.08212578]
[1718649369295,0.1,67231.0,67228.0,0.08212578]
[1718649369296,0.1,67229.0,67228.0,0.07593072]
[1718649369497,0.1,67231.0,67228.0,0.07593072]
[1718649369717,0.2884878,67231.0,67228.0,0.07593072]
[1718649369919,0.148746,67229.0,67221.0,0.2614]
[1718649370115,0.09982102,67231.0,67220.0,0.07593072]
[1718649370350,0.09982102,67231.0,67218.0,0.001946]
[1718649370351,0.297526,67222.0,67218.0,0.002946]
[1718649370558,0.001,67219.0,67218.0,0.151715]
[1718649370724,0.001,67219.0,67218.0,0.75743232]
[1718649371015,0.02685181,67236.0,67233.0,0.01163932]
[1718649371213,0.2528,67249.0,67241.0,0.148717]
[1718649371412,0.2528,67249.0,67242.0,0.07593072]
[1718649371615,0.2528,67249.0,67235.0,0.07593072]
[1718649371825,0.02775287,67246.0,67235.0,0.07593072]
[1718649372037,0.02775287,67246.0,67225.0,0.08757004]
[1718649372038,0.18078417,67245.0,67225.0,0.08757004]
[1718649372248,0.18078417,67245.0,67237.0,0.148726]
[1718649372249,0.15272888,67245.0,67237.0,0.148726]
[1718649372422,0.15272888,67245.0,67241.0,0.001]
[1718649372983,0.15272888,67245.0,67219.0,0.01163932]
[1718649372984,0.148743,67230.0,67219.0,0.01163932]
[1718649373224,0.148743,67230.0,67217.0,0.71547]
[1718649373225,0.2518,67232.0,67226.0,0.53151504]
[1718649373421,0.2518,67232.0,67226.0,0.07593072]
[1718649373422,0.148749,67227.0,67226.0,0.07593072]
[1718649373667,0.148749,67228.0,67226.0,0.07593072]
[1718649373848,0.2518,67232.0,67220.0,0.01163932]
[1718649374049,0.2518,67232.0,67218.0,0.014946]
[1718649374050,0.15272888,67231.0,67223.0,0.07593072]
[1718649374423,0.15272888,67231.0,67226.0,0.001]
[1718649374749,0.29798,67232.0,67230.0,0.07593072]
[1718649374750,0.001,67232.0,67230.0,0.07593072]
[1718649376066,0.248728,67237.0,67230.0,0.07593072]
[1718649376262,0.004,67231.0,67224.0,0.148756]
[1718649376485,0.004,67231.0,67225.0,0.148754]
[1718649376718,0.004,67231.0,67230.0,0.07593072]
[1718649376871,0.004,67231.0,67227.0,0.01163932]
[1718649376872,0.1,67235.0,67225.0,0.16039132]
[1718649377071,0.008,67232.0,67230.0,0.001]
[1718649377646,0.04014549,67234.0,67223.0,0.07593072]
[1718649377769,0.14014549,67234.0,67223.0,0.08757004]
[1718649377972,0.148737,67233.0,67223.0,0.08757004]
[1718649378197,0.248734,67234.0,67223.0,0.07593072]
[1718649378514,0.1,67234.0,67223.0,0.23632704]
[1718649378762,0.1,67234.0,67227.0,0.01163932]
[1718649378965,0.01,67231.0,67230.0,0.001]
[1718649379550,0.1,67236.0,67226.0,0.01163932]
[1718649379756,0.1,67236.0,67230.0,0.00617011]
[1718649379929,0.008,67234.0,67230.0,0.01163932]
[1718649380138,0.008,67234.0,67231.0,0.00617011]
[1718649380374,0.1,67236.0,67231.0,0.00617011]
[1718649380578,0.1,67236.0,67225.0,0.16039332]
[1718649380758,0.1,67236.0,67226.0,0.01263932]
[1718649380760,0.114,67236.0,67226.0,0.01263932]
[1718649380956,0.15272888,67235.0,67226.0,0.00717011]
[1718649381157,0.1,67234.0,67226.0,0.00717011]
[1718649381467,0.25472888,67234.0,67227.0,0.001]
[1718649381652,0.102,67234.0,67228.0,0.00617011]
[1718649382051,0.002,67234.0,67228.0,0.00617011]
[1718649382850,0.16963246,67236.0,67231.0,0.001]
[1718649382851,0.18363246,67236.0,67231.0,0.001]
[1718649383057,0.115,67236.0,67231.0,0.001]
[1718649383256,0.115,67236.0,67227.0,0.07593072]
[1718649383257,0.101,67236.0,67227.0,0.07593072]
[1718649383611,0.1,67236.0,67228.0,0.00617011]
[1718649383737,0.014,67234.0,67228.0,0.00817011]
[1718649383945,0.09369037,67234.0,67228.0,0.002]
[1718649384142,0.09369037,67234.0,67220.0,0.01163932]
[1718649384143,0.148749,67228.0,67220.0,0.01163932]
[1718649384367,0.29749,67229.0,67220.0,0.01163932]
[1718649384600,0.44719088,67233.0,67227.0,0.001]
[1718649384601,0.148745,67230.0,67227.0,0.001]
[1718649384755,0.148741,67231.0,67227.0,0.002]
[1718649385344,0.148745,67229.0,67227.0,0.002]
[1718649385592,0.4909371,67228.0,67227.0,0.002]
[1718649386434,0.0446951,67228.0,67227.0,0.002]
[1718649386731,0.297488,67230.0,67227.0,0.001]
[1718649386732,0.148744,67230.0,67227.0,0.001]
[1718649386935,0.14875,67227.0,67220.0,0.01163932]
[1718649387146,0.153745,67229.0,67228.0,0.001]
[1718649387299,0.153745,67229.0,67223.0,0.07593072]
[1718649387300,0.148754,67225.0,67223.0,0.07593072]
[1718649387504,0.148752,67226.0,67223.0,0.07593072]
[1718649387704,0.148759,67223.0,67218.0,0.000946]
[1718649387901,0.148746,67229.0,67219.0,0.00617781]
[1718649388144,0.148746,67229.0,67227.0,0.001]
[1718649388470,0.148746,67229.0,67228.0,0.001]
[1718649388471,0.001,67229.0,67228.0,0.001]
[1718649388889,0.001,67229.0,67228.0,0.00717985]
[1718649389297,0.001,67229.0,67228.0,0.001]
[1718649389513,0.02111194,67229.0,67228.0,0.001]
[1718649389947,0.02011194,67229.0,67223.0,0.07593072]
[1718649390417,0.148747,67228.0,67223.0,0.07593072]
[1718649390593,0.02011194,67229.0,67223.0,0.07593072]
[1718649390594,0.16885794,67229.0,67223.0,0.07593072]
[1718649390812,0.02011194,67229.0,67223.0,0.07593072]
[1718649391037,0.02011194,67229.0,67198.0,0.009394]
[1718649391038,0.2,67212.0,67198.0,0.009394]
[1718649391263,0.2446,67205.0,67201.0,0.45558432]
[1718649391433,0.148809,67200.0,67199.0,0.00617902]
[1718649391675,0.1,67200.0,67198.0,0.009394]
[1718649391890,0.1,67199.0,67198.0,0.009394]
[1718649392212,0.2,67203.0,67200.0,1.9547]
[1718649392213,0.764035,67201.0,67200.0,1.9547]
[1718649392411,0.51626739,67201.0,67200.0,1.9547]
[1718649392614,0.56502487,67201.0,67200.0,1.9547]
[1718649392833,1.73622487,67201.0,67200.0,1.9547]
[1718649393060,2.38381084,67201.0,67200.0,1.9547]
[1718649393271,2.08619684,67201.0,67200.0,1.9547]
[1718649393911,0.19655839,67201.0,67200.0,1.9547]
[1718649394119,0.1,67201.0,67200.0,1.9547]
[1718649394356,0.1,67201.0,67200.0,1.9557]
[1718649394357,0.103,67201.0,67200.0,1.9557]
[1718649394558,0.003,67201.0,67200.0,1.9557]
[1718649394762,0.017,67201.0,67200.0,2.104509]
[1718649394966,0.017,67201.0,67200.0,2.699747]
[1718649395136,0.017,67201.0,67200.0,2.997366]
[1718649395336,0.017,67201.0,67200.0,1.9557]
[1718649396436,0.017,67201.0,67200.0,1.956646]
[1718649396742,0.003,67201.0,67200.0,1.956646]
[1718649397261,0.297581,67209.0,67200.0,1.955646]
[1718649397395,0.297574,67211.0,67205.0,0.07593072]
[1718649397844,0.148781,67213.0,67205.0,0.07593072]
[1718649398045,0.1,67212.0,67205.0,0.07593072]
[1718649398410,0.02752321,67215.0,67208.0,0.297583]
[1718649398611,0.63569688,67227.0,67206.0,0.00759307]
[1718649398612,0.02011194,67229.0,67217.0,0.297543]
[1718649398925,0.02011194,67229.0,67214.0,0.07593072]
[1718649398926,0.02011194,67229.0,67221.0,0.07593072]
[1718649399308,0.02704629,67228.0,67220.0,0.148764]
[1718649399513,0.2975,67227.0,67206.0,0.297589]
[1718649399731,0.2445,67231.0,67214.0,0.07593072]
[1718649399732,0.297516,67224.0,67214.0,0.07593072]
[1718649399933,0.148752,67226.0,67214.0,0.07593072]
[1718649400079,0.148755,67225.0,67214.0,0.22470872]
[1718649400279,0.148755,67225.0,67214.0,0.07593072]
[1718649400280,0.0743742,67224.0,67214.0,0.07593072]
[1718649400484,0.4718882,67224.0,67214.0,0.07593072]
[1718649400699,0.003,67215.0,67214.0,0.07593072]
[1718649401167,0.0743742,67224.0,67214.0,0.22470872]
[1718649401314,0.297522,67222.0,67214.0,0.07593072]
[1718649401512,0.0743742,67224.0,67214.0,0.07693072]
[1718649401794,0.446328,67215.0,67214.0,0.001]
[1718649401959,0.1,67215.0,67201.0,0.07593072]
[1718649402161,0.297599,67205.0,67196.0,0.009394]
[1718649402377,0.15272888,67214.0,67196.0,0.009394]
[1718649402378,0.297587,67208.0,67202.0,0.0060184]
[1718649402575,0.02,67212.0,67196.0,0.009394]
[1718649402788,0.297601,67204.0,67203.0,0.0060184]
[1718649403000,0.297601,67204.0,67196.0,0.009394]
[1718649403001,0.297597,67205.0,67196.0,0.009394]
[1718649403131,0.297589,67207.0,67196.0,0.009394]
[1718649403132,0.148805,67202.0,67196.0,0.009394]
[1718649403335,0.297589,67207.0,67196.0,0.009394]
[1718649403336,0.148798,67206.0,67196.0,0.009394]
[1718649403555,0.148798,67206.0,67201.0,0.07593072]
[1718649404023,0.18893051,67220.0,67214.0,0.001]
[1718649404223,0.17669011,67215.0,67214.0,0.001]
[1718649404437,0.1,67215.0,67201.0,0.07593072]
[1718649404637,0.148792,67208.0,67201.0,0.07593072]
[1718649404832,0.028,67206.0,67201.0,0.07593072]
[1718649405075,0.028,67206.0,67201.0,0.22473572]
[1718649405076,0.014,67206.0,67201.0,0.22473572]
[1718649405284,0.014,67206.0,67205.0,0.148798]
[1718649405494,0.1,67214.0,67202.0,0.148804]
[1718649405495,0.248779,67214.0,67202.0,0.148804]
[1718649405653,0.27010916,67213.0,67203.0,0.07593072]
[1718649405872,0.148789,67209.0,67203.0,0.07593072]
[1718649406034,0.148787,67210.0,67203.0,0.07593072]
[1718649406384,0.56767116,67213.0,67203.0,0.07593072]
[1718649406588,0.14879,67209.0,67203.0,0.07593072]
[1718649406759,0.18790628,67209.0,67203.0,0.07593072]
[1718649407137,0.03911628,67209.0,67203.0,0.07593072]
[1718649407748,0.028,67206.0,67203.0,0.07593072]
[1718649407950,0.014,67206.0,67205.0,0.148798]
[1718649408175,0.11738028,67213.0,67209.0,0.148788]
[1718649408376,0.02707781,67217.0,67203.0,0.07693072]
[1718649408705,0.0895,67221.0,67201.0,0.07593072]
[1718649408706,0.148798,67206.0,67201.0,0.07593072]
[1718649408949,0.014,67209.0,67201.0,0.07593072]
[1718649409151,0.162796,67206.0,67203.0,0.001]
[1718649409380,0.2573,67206.0,67201.0,0.07593072]
[1718649409563,0.148807,67201.0,67200.0,1.955646]
[1718649409781,0.446421,67201.0,67200.0,1.955646]
[1718649410129,0.148807,67201.0,67200.0,1.955646]
[1718649410336,0.446421,67201.0,67200.0,1.955646]
[1718649410525,0.1,67201.0,67200.0,1.955646]
[1718649410734,0.248807,67201.0,67200.0,1.955646]
[1718649411136,0.546421,67201.0,67200.0,1.955646]
[1718649411467,0.21616531,67201.0,67200.0,1.955646]
[1718649411663,0.23016531,67201.0,67200.0,1.955646]
[1718649412063,1.355435,67201.0,67200.0,1.955646]
[1718649412264,0.128,67201.0,67200.0,1.955646]
[1718649412444,0.425614,67201.0,67200.0,1.955646]
[1718649412646,0.560421,67201.0,67200.0,1.96168992]
[1718649412854,0.858035,67201.0,67200.0,1.955646]
[1718649413228,0.858035,67201.0,67200.0,1.96168992]
[1718649413703,1.14238421,67201.0,67200.0,1.96168992]
[1718649413915,0.13981683,67201.0,67200.0,1.96168992]
[1718649414113,0.12581683,67201.0,67200.0,1.96168992]
[1718649414263,0.28862383,67201.0,67200.0,1.96168992]
[1718649414462,0.15381683,67201.0,67200.0,1.96268992]
[1718649414915,0.13981683,67201.0,67200.0,1.96168992]
[1718649415132,0.21251986,67201.0,67200.0,1.96268992]
[1718649415426,0.63094086,67201.0,67200.0,1.96168992]
[1718649415787,0.65894086,67201.0,67200.0,1.96268992]
[1718649415986,1.10928374,67201.0,67200.0,1.96268992]
[1718649416187,1.09528374,67201.0,67200.0,1.96268992]
[1718649416454,0.79766974,67201.0,67200.0,1.96268992]
[1718649416619,0.50005574,67201.0,67200.0,1.96268992]
[1718649417131,0.79766974,67201.0,67200.0,1.96268992]
[1718649417336,0.78366974,67201.0,67200.0,1.96168992]
[1718649417533,0.33724874,67201.0,67200.0,1.96168992]
[1718649417749,0.79766974,67201.0,67200.0,1.96268992]
[1718649417932,0.36524874,67201.0,67200.0,1.96268992]
[1718649418134,0.81166974,67201.0,67200.0,1.96268992]
[1718649418547,1.12928374,67201.0,67200.0,1.96268992]
[1718649419353,1.42689774,67201.0,67200.0,1.96268992]
[1718649419560,1.99652474,67201.0,67200.0,1.95372314]
[1718649419759,1.97412474,67201.0,67200.0,1.95372314]
[1718649419962,1.52170974,67201.0,67200.0,1.95372314]
[1718649420171,1.49058374,67201.0,67200.0,1.95372314]
[1718649420365,1.34648374,67201.0,67200.0,1.95372314]
[1718649420701,1.85008574,67201.0,67200.0,1.95372314]
[1718649421484,2.26019974,67201.0,67200.0,1.88721775]
[1718649421859,1.28976978,67201.0,67200.0,1.88721775]
[1718649421986,0.71625275,67201.0,67200.0,1.88721775]
[1718649422366,0.20343187,67201.0,67200.0,1.88721775]
[1718649422553,0.13981683,67201.0,67200.0,1.88621775]
[1718649423268,0.12581683,67201.0,67200.0,1.88621775]
[1718649424058,1.41585541,67201.0,67200.0,1.88621775]
[1718649424263,1.49013481,67201.0,67200.0,1.88621775]
[1718649424473,0.88090681,67201.0,67200.0,1.88621775]
[1718649424672,0.16298319,67201.0,67200.0,1.88621775]
[1718649424898,0.16298319,67201.0,67200.0,2.63284575]
[1718649424899,0.028,67201.0,67200.0,2.63284575]
[1718649425103,0.014,67201.0,67200.0,2.74913675]
[1718649425408,0.014,67201.0,67200.0,2.45151775]
[1718649425554,0.028,67201.0,67200.0,2.89794575]
[1718649425909,0.028,67201.0,67200.0,3.19556475]
[1718649426116,0.014,67201.0,67200.0,3.19556475]
[1718649426549,0.028,67201.0,67200.0,2.91794575]
[1718649426758,0.028,67201.0,67200.0,3.21556475]
[1718649426959,0.028,67201.0,67200.0,3.51318375]
[1718649427372,0.014,67201.0,67200.0,3.51318375]
[1718649427584,0.014,67201.0,67200.0,3.66591263]
[1718649427790,0.026,67201.0,67200.0,3.66591263]
[1718649427937,0.2743742,67224.0,67213.0,0.148779]
[1718649428139,0.45558432,67219.0,67211.0,0.148784]
[1718649428335,0.12315968,67218.0,67215.0,0.148775]
[1718649428536,0.12315968,67218.0,67203.0,0.02]
[1718649428537,0.1,67217.0,67211.0,0.29757]
[1718649428746,0.2743742,67224.0,67216.0,0.00608119]
[1718649428747,0.10008122,67224.0,67216.0,0.00608119]
[1718649428951,0.02702637,67223.0,67217.0,0.297543]
[1718649429315,0.02702637,67223.0,67218.0,0.00602281]